bitfinex-derivatives/quotes_BTCF0:USTF0_20250811
["timestamp","ask_amount","ask_price","bid_price","bid_amount"]
[1754935356201,0.0001,119550.0,119540.0,0.78911221]
[1754935356405,0.0011,119550.0,119540.0,0.78911221]
[1754935356702,0.0011,119550.0,119540.0,0.4040258]
[1754935357005,0.0011,119550.0,119540.0,0.78911221]
[1754935357710,0.0011,119550.0,119540.0,0.62180821]
[1754935358408,0.0011,119550.0,119540.0,0.62280821]
[1754935358603,0.0001,119550.0,119540.0,0.62480821]
[1754935359113,0.0001,119550.0,119540.0,0.60480821]
[1754935360009,0.0837448,119550.0,119540.0,0.2197218]
[1754935360313,0.0837448,119550.0,119540.0,0.60480821]
[1754935360817,0.0001,119550.0,119540.0,0.63911821]
[1754935363515,0.0001,119550.0,119540.0,0.2540318]
[1754935363715,0.0001,119550.0,119540.0,0.63911821]
[1754935366220,0.0001,119550.0,119540.0,0.2540318]
[1754935366415,0.0001,119550.0,119540.0,0.63911821]
[1754935366615,0.0001,119550.0,119540.0,0.2540318]
[1754935366920,0.0001,119550.0,119540.0,0.3209518]
[1754935367218,0.0001,119550.0,119540.0,0.70603821]
[1754935368429,0.0837449,119550.0,119540.0,0.70603821]
[1754935369517,0.46883131,119550.0,119540.0,0.2614518]
[1754935370021,0.46883131,119550.0,119540.0,0.2859318]
[1754935370219,0.46883131,119550.0,119540.0,0.3195318]
[1754935370420,0.0837449,119550.0,119540.0,0.3195318]
[1754935373620,0.0837449,119550.0,119540.0,0.70461821]
[1754935374620,0.0001,119550.0,119540.0,0.70461821]
[1754935377422,0.0837449,119550.0,119540.0,0.70461821]
[1754935378322,0.0837449,119550.0,119540.0,0.3195318]
[1754935378516,0.0837449,119550.0,119540.0,0.70461821]
[1754935378917,0.0837449,119550.0,119540.0,0.3195318]
[1754935384029,0.0837449,119550.0,119540.0,0.3395319]
[1754935384322,0.46883131,119550.0,119540.0,0.3395319]
[1754935384525,0.46883131,119550.0,119540.0,0.25588]
[1754935385419,0.46883131,119550.0,119540.0,0.3395319]
[1754935387425,0.0837449,119550.0,119540.0,0.3395319]
[1754935388026,0.46883131,119550.0,119540.0,0.3395319]
[1754935388231,0.48713492,119550.0,119540.0,0.3395319]
[1754935389327,0.48744335,119550.0,119540.0,0.3395319]
[1754935389832,0.10235694,119550.0,119540.0,0.3395319]
[1754935390027,0.48744335,119550.0,119540.0,0.3395319]
[1754935392233,0.10235694,119550.0,119540.0,0.3395319]
[1754935392436,0.48744335,119550.0,119540.0,0.3395319]
[1754935394836,0.10235694,119550.0,119540.0,0.3395319]
[1754935395037,0.48744335,119550.0,119540.0,0.3395319]
[1754935396131,0.10235694,119550.0,119540.0,0.3395319]
[1754935396339,0.10235694,119550.0,119540.0,0.72461831]
[1754935397031,0.10235694,119550.0,119540.0,0.3395319]
[1754935399329,0.0837449,119550.0,119540.0,0.3395319]
[1754935401341,0.46883131,119550.0,119540.0,0.3395319]
[1754935402150,0.0837449,119550.0,119540.0,0.3395319]
[1754935402349,0.46883131,119550.0,119540.0,0.3395319]
[1754935402851,0.0837449,119550.0,119540.0,0.3395319]
[1754935403053,0.46883131,119550.0,119540.0,0.3395319]
[1754935403948,0.46883131,119550.0,119540.0,0.15374]
[1754935404148,0.47028746,119550.0,119540.0,0.10433]
[1754935404350,0.47028746,119550.0,119540.0,0.1342]
[1754935404550,0.63759146,119550.0,119540.0,0.1342]
[1754935405350,0.63859146,119550.0,119540.0,0.1312]
[1754935406649,0.25350505,119550.0,119540.0,0.1312]
[1754935406947,0.64059146,119550.0,119540.0,0.1312]
[1754935408654,0.47328746,119550.0,119540.0,0.1312]
[1754935414262,0.50738746,119550.0,119540.0,0.1312]
[1754935414463,0.50738746,119550.0,119540.0,0.15575]
[1754935414665,0.50738746,119550.0,119540.0,0.1312]
[1754935414962,0.50738746,119550.0,119540.0,0.22364]
[1754935415164,0.50738746,119550.0,119540.0,0.24538]
[1754935416465,1.30026746,119550.0,119540.0,0.24538]
[1754935418263,1.26616746,119550.0,119540.0,0.24538]
[1754935418864,1.26616746,119550.0,119540.0,0.21107]
[1754935422863,1.26616746,119550.0,119540.0,0.10129]
[1754935424968,1.43347146,119550.0,119540.0,0.10129]
[1754935425564,1.43347146,119550.0,119540.0,0.13116]
[1754935425759,1.43347146,119550.0,119540.0,0.10129]
[1754935426565,1.43347146,119550.0,119540.0,0.13116]
[1754935426762,1.43347146,119550.0,119540.0,0.10129]
[1754935427468,1.57237146,119550.0,119540.0,0.10129]
[1754935427956,1.23718505,119550.0,119540.0,0.05704114]
[1754935428162,1.62227146,119550.0,119540.0,0.03427]
[1754935428364,1.57227146,119550.0,119540.0,0.0005438]
[1754935428560,0.0836659,119520.0,119510.0,0.0294]
[1754935428763,0.0836729,119510.0,119500.0,5.0836799]
[1754935428961,0.46875931,119510.0,119500.0,5.1397899]
[1754935429170,0.46885931,119510.0,119500.0,5.05621]
[1754935429358,0.46885931,119510.0,119500.0,5.08561]
[1754935429972,0.47085931,119510.0,119500.0,5.08561]
[1754935430271,0.0857729,119510.0,119500.0,5.1692899]
[1754935431071,0.47085931,119510.0,119500.0,5.1692899]
[1754935431371,0.47085931,119510.0,119500.0,5.08561]
[1754935431874,0.47185931,119510.0,119500.0,5.08561]
[1754935433172,0.47185931,119510.0,119500.0,5.0295]
[1754935433468,0.47185931,119510.0,119500.0,5.08561]
[1754935434678,0.0867729,119510.0,119500.0,5.08561]
[1754935434878,0.47185931,119510.0,119500.0,5.08561]
[1754935435267,0.47185931,119510.0,119500.0,5.0295]
[1754935435668,0.47185931,119510.0,119500.0,5.08561]
[1754935438581,0.61075931,119510.0,119500.0,5.08561]
[1754935441079,0.61075931,119510.0,119500.0,5.0295]
[1754935441280,0.61075931,119510.0,119500.0,5.08561]
[1754935442066,0.60975931,119510.0,119500.0,5.08561]
[1754935442270,0.61175931,119510.0,119500.0,5.08561]
[1754935443281,1.40727931,119510.0,119500.0,5.08561]
[1754935445370,0.61175931,119510.0,119500.0,5.08561]
[1754935445580,1.40675931,119510.0,119500.0,5.08561]
[1754935446076,1.40675931,119510.0,119500.0,5.0295]
[1754935446281,1.40675931,119510.0,119500.0,5.08561]
[1754935450875,1.40907931,119510.0,119500.0,5.08561]
[1754935453581,1.27017931,119510.0,119500.0,5.08561]
[1754935455383,1.27017931,119510.0,119500.0,4.81052858]
[1754935455780,1.27017931,119510.0,119500.0,4.78306736]
[1754935459586,0.8850929,119510.0,119500.0,4.78306736]
[1754935459786,1.27017931,119510.0,119500.0,4.78306736]
[1754935460684,1.27049931,119510.0,119500.0,4.78306736]
[1754935461581,0.8853729,119510.0,119500.0,4.78306736]
[1754935461774,1.27045931,119510.0,119500.0,4.78306736]
[1754935463190,1.82060498,119510.0,119500.0,3.51964387]
[1754935463389,1.43551857,119510.0,119500.0,3.48863573]
[1754935463882,1.43551857,119510.0,119500.0,3.42157903]
[1754935464382,1.43551857,119510.0,119500.0,2.97421173]
[1754935464583,1.98796498,119510.0,119500.0,2.02389355]
[1754935464781,1.60087857,119510.0,119500.0,1.69873115]
[1754935464982,0.80127857,119510.0,119500.0,1.65158396]
[1754935465185,1.43391857,119510.0,119500.0,1.65158396]
[1754935465983,1.43391857,119510.0,119500.0,1.56483396]
[1754935466187,0.0837073,119460.0,119450.0,0.02744289]
[1754935466378,0.2511795,119440.0,119420.0,0.55255301]
[1754935466580,0.26987069,119440.0,119430.0,0.44393641]
[1754935466781,0.8002,119440.0,119430.0,0.47366641]
[1754935466986,0.98223615,119440.0,119430.0,0.50637641]
[1754935467282,1.13215979,119440.0,119430.0,0.12129]
[1754935467483,1.13225979,119440.0,119430.0,0.09166]
[1754935467688,1.17173174,119440.0,119430.0,0.09898]
[1754935468086,1.17173174,119440.0,119430.0,0.09998]
[1754935468385,0.0837355,119420.0,119410.0,0.01]
[1754935468693,0.90247775,119420.0,119410.0,0.03894]
[1754935468894,0.90247775,119420.0,119410.0,0.06369]
[1754935469189,1.00700775,119420.0,119410.0,0.07101]
[1754935469387,1.04778775,119420.0,119410.0,0.06369]
[1754935469587,1.04788775,119420.0,119410.0,0.06579]
[1754935469892,0.0837495,119400.0,119390.0,0.08848]
[1754935470094,1.79039133,119400.0,119390.0,0.11742]
[1754935470286,0.0837565,119390.0,119380.0,0.01008]
[1754935470592,0.10274685,119380.0,119370.0,0.00061053]
[1754935470783,1.03524685,119380.0,119370.0,0.05430053]
[1754935470986,0.99114685,119380.0,119370.0,0.06172053]
[1754935471185,0.83464325,119380.0,119370.0,0.14549113]
[1754935471583,0.92686001,119380.0,119370.0,0.14549113]
[1754935471785,0.84309651,119380.0,119370.0,0.14549113]
[1754935471990,0.92686001,119380.0,119370.0,0.06172053]
[1754935472697,0.99380589,119380.0,119370.0,0.06172053]
[1754935473093,1.02476589,119380.0,119370.0,0.05440053]
[1754935473285,1.02476589,119380.0,119370.0,0.06172053]
[1754935473491,1.02576589,119380.0,119370.0,0.06172053]
[1754935473687,0.99480589,119380.0,119370.0,0.06172053]
[1754935473889,1.02576589,119380.0,119370.0,0.06172053]
[1754935474099,0.99626413,119380.0,119370.0,0.14549093]
[1754935474397,0.07497804,119380.0,119370.0,0.59769674]
[1754935474586,0.94040641,119380.0,119370.0,0.14539093]
[1754935474894,1.02416981,119380.0,119370.0,0.14539093]
[1754935475290,0.94040641,119380.0,119370.0,0.14539093]
[1754935475790,0.9318398,119380.0,119370.0,0.19539093]
[1754935475986,0.0736198,119380.0,119370.0,0.64779674]
[1754935476190,0.0736198,119380.0,119370.0,0.81533274]
[1754935476789,0.1573827,119380.0,119370.0,0.81533274]
[1754935476994,0.1573827,119380.0,119370.0,0.36302693]
[1754935477192,0.0736198,119380.0,119370.0,0.36302693]
[1754935477399,0.1573827,119380.0,119370.0,0.81533274]
[1754935477797,0.1573827,119380.0,119370.0,0.36302693]
[1754935478191,0.1573827,119380.0,119370.0,0.81533274]
[1754935478791,0.1573827,119380.0,119370.0,0.59779674]
[1754935478999,0.1883427,119380.0,119370.0,0.06172053]
[1754935479204,0.2803627,119380.0,119370.0,0.05440053]
[1754935479401,0.3026927,119380.0,119370.0,0.00071053]
[1754935480098,0.30415096,119380.0,119370.0,0.00071053]
[1754935481090,0.3026927,119380.0,119370.0,0.00071053]
[1754935481497,0.30415097,119380.0,119370.0,0.00071053]
[1754935481895,0.25033858,119380.0,119370.0,0.00071053]
[1754935483707,0.70264439,119380.0,119370.0,0.00071053]
[1754935483905,0.25033858,119380.0,119370.0,0.00071053]
[1754935484308,0.70264439,119380.0,119370.0,0.00071053]
[1754935484701,0.31858438,119380.0,119370.0,0.00071053]
[1754935484903,0.1675623,119360.0,119340.0,0.1775763]
[1754935485101,1.1042142,119350.0,119340.0,0.0937912]
[1754935485298,1.34414949,119350.0,119340.0,0.0937912]
[1754935485596,1.34414949,119350.0,119340.0,0.0948912]
[1754935485805,0.46902949,119350.0,119340.0,0.0937912]
[1754935485998,1.42863379,119350.0,119340.0,0.0938912]
[1754935486198,0.46912949,119350.0,119340.0,0.0949912]
[1754935486405,0.96541,119350.0,119340.0,0.55098701]
[1754935486911,0.91326,119350.0,119340.0,0.55398701]
[1754935487106,0.0001,119350.0,119340.0,0.55398701]
[1754935487303,0.88802,119350.0,119340.0,0.44422776]
[1754935487606,0.0001,119350.0,119340.0,0.99698357]
[1754935487805,0.0001,119350.0,119340.0,0.49467776]
[1754935488013,0.2944143,119350.0,119340.0,0.74924957]
[1754935488218,0.04752,119350.0,119340.0,0.35717376]
[1754935488416,0.1313043,119350.0,119340.0,0.36017376]
[1754935488626,1.1293043,119350.0,119340.0,0.22485376]
[1754935488822,1.2060943,119350.0,119340.0,0.80809957]
[1754935489023,0.9592,119350.0,119340.0,0.84186957]
[1754935489920,0.9592,119350.0,119340.0,1.00945357]
[1754935490219,0.9119,119350.0,119340.0,1.00945357]
[1754935490610,0.0001,119350.0,119340.0,0.84186957]
[1754935490809,0.01886875,119360.0,119350.0,0.0837842]
[1754935491010,0.93046875,119360.0,119350.0,0.70070001]
[1754935491216,0.93046875,119360.0,119350.0,0.86826801]
[1754935491813,1.06166575,119360.0,119350.0,0.4159622]
[1754935492017,1.10252575,119360.0,119350.0,0.86836801]
[1754935492320,1.10252575,119360.0,119350.0,0.87036801]
[1754935492521,1.06176575,119360.0,119350.0,0.87036801]
[1754935493028,1.06108575,119360.0,119350.0,0.87236801]
[1754935493229,1.10184575,119360.0,119350.0,0.0878842]
[1754935493523,1.13787575,119360.0,119350.0,0.1344442]
[1754935493723,1.13787575,119360.0,119350.0,0.67113001]
[1754935494923,1.13787575,119360.0,119350.0,0.54019001]
[1754935495131,1.13787575,119360.0,119350.0,0.0041]
[1754935495314,1.13787575,119360.0,119350.0,0.0878837]
[1754935495518,1.13787575,119360.0,119350.0,0.0041]
[1754935495923,1.59164002,119360.0,119350.0,0.0041]
[1754935496329,0.0837908,119340.0,119330.0,0.0001]
[1754935496522,0.22671733,119340.0,119330.0,0.0001]
[1754935496719,1.13647733,119340.0,119330.0,0.0838978]
[1754935496924,1.13611733,119340.0,119330.0,0.1180978]
[1754935497126,1.13611733,119340.0,119330.0,0.0001]
[1754935497730,1.13611733,119340.0,119330.0,0.0071]
[1754935497931,0.22681733,119340.0,119330.0,0.090998]
[1754935498128,0.083805,119320.0,119310.0,0.1776188]
[1754935498327,1.05114023,119320.0,119310.0,0.60997791]
[1754935498523,1.05114023,119320.0,119310.0,0.64364791]
[1754935498720,1.13494523,119320.0,119310.0,0.1913421]
[1754935498932,1.05114023,119320.0,119310.0,0.1913421]
[1754935499132,1.13494523,119320.0,119310.0,0.1913421]
[1754935499330,1.13504523,119320.0,119310.0,0.64374791]
[1754935500034,1.13504523,119320.0,119310.0,0.64674791]
[1754935500332,0.10705023,119320.0,119310.0,0.64674791]
[1754935500530,0.15009523,119320.0,119310.0,0.64874791]
[1754935500731,1.05873523,119320.0,119310.0,0.1964421]
[1754935500929,1.13552523,119320.0,119310.0,0.1627721]
[1754935501130,1.13552523,119320.0,119310.0,0.0989121]
[1754935501337,1.13552523,119320.0,119310.0,0.0151]
[1754935501628,1.13552523,119320.0,119310.0,0.136312]
[1754935501824,1.13552523,119320.0,119310.0,0.162772]
[1754935502027,1.13552523,119320.0,119310.0,0.61507781]
[1754935502223,1.13552523,119320.0,119310.0,0.162772]
[1754935502429,1.09949523,119320.0,119310.0,0.61507781]
[1754935502627,1.05873523,119320.0,119310.0,0.61507781]
[1754935502826,1.05873523,119320.0,119310.0,0.196442]
[1754935503028,1.09949523,119320.0,119310.0,0.193442]
[1754935503433,1.13552523,119320.0,119310.0,0.64574781]
[1754935503830,1.13552523,119320.0,119310.0,0.64374781]
[1754935504026,1.13752523,119320.0,119310.0,0.157772]
[1754935504338,1.13752523,119320.0,119310.0,0.61007781]
[1754935504731,1.13752523,119320.0,119310.0,0.093912]
[1754935504932,1.13752523,119320.0,119310.0,0.61007781]
[1754935505134,1.13752523,119320.0,119310.0,0.157772]
[1754935505732,1.13752523,119320.0,119310.0,0.191442]
[1754935505938,1.05700023,119320.0,119310.0,0.191442]
[1754935506138,1.05700023,119320.0,119310.0,0.64374781]
[1754935506333,0.06829023,119320.0,119310.0,0.76904638]
[1754935506536,0.06829023,119320.0,119310.0,0.85342638]
[1754935506938,0.02087023,119320.0,119310.0,0.85342638]
[1754935507139,0.02087023,119320.0,119310.0,1.02105038]
[1754935507737,0.02087023,119320.0,119310.0,0.56874457]
[1754935507938,0.04752,119320.0,119310.0,1.02105038]
[1754935508246,0.04752,119320.0,119310.0,1.02205038]
[1754935508538,0.0001,119320.0,119310.0,1.02205038]
[1754935509343,0.0001,119320.0,119310.0,1.02305038]
[1754935509532,0.0001,119320.0,119310.0,0.45269457]
[1754935509731,0.04752,119320.0,119310.0,1.02305038]
[1754935510129,0.21063,119320.0,119310.0,0.82175638]
[1754935510339,0.0001,119320.0,119310.0,1.02305038]
[1754935510940,0.0001,119320.0,119310.0,1.02205038]
[1754935511145,0.0001,119320.0,119310.0,1.02305038]
[1754935512635,0.0001,119320.0,119310.0,1.02205038]
[1754935512838,0.0001,119320.0,119310.0,1.02305038]
[1754935513537,0.0001,119320.0,119310.0,1.02205038]
[1754935513740,0.04742,119340.0,119330.0,0.083798]
[1754935513944,0.21104379,119360.0,119350.0,0.0837839]
[1754935514140,0.29736379,119360.0,119350.0,0.71799971]
[1754935514739,0.38113969,119360.0,119350.0,0.68432971]
[1754935514946,0.38123969,119360.0,119350.0,0.0838839]
[1754935515453,0.38523969,119360.0,119350.0,0.0848839]
[1754935515654,0.38523969,119360.0,119350.0,0.53718971]
[1754935516041,0.38523969,119360.0,119340.0,0.1675717]
[1754935516042,0.46784238,119360.0,119340.0,0.1675717]
[1754935516243,0.1605728,119350.0,119340.0,0.70366661]
[1754935516446,0.1605728,119350.0,119340.0,0.78207661]
[1754935516949,0.07679,119350.0,119340.0,0.82915661]
[1754935517146,0.0001,119350.0,119340.0,0.82925661]
[1754935517547,0.0001,119350.0,119340.0,0.95471551]
[1754935517740,0.0031,119350.0,119340.0,0.95471551]
[1754935518055,0.0888828,119350.0,119340.0,0.95471551]
[1754935518348,0.1686628,119350.0,119340.0,0.95471551]
[1754935518546,0.0838009,119330.0,119320.0,0.1676036]
[1754935518745,0.2085069,119330.0,119320.0,0.82755311]
[1754935518948,0.2085069,119330.0,119320.0,0.95254532]
[1754935519259,0.1277869,119330.0,119320.0,0.95254532]
[1754935519551,0.1635769,119330.0,119320.0,0.95254532]
[1754935519749,0.1636769,119330.0,119320.0,0.95264532]
[1754935520144,0.2086069,119330.0,119320.0,0.86884162]
[1754935521156,0.2096069,119330.0,119320.0,0.86884162]
[1754935521652,0.08088,119330.0,119320.0,0.86884162]
[1754935521946,0.164677,119330.0,119320.0,0.86884162]
[1754935522750,0.164677,119330.0,119320.0,0.41653581]
[1754935523047,0.209607,119330.0,119320.0,0.41653581]
[1754935523444,0.209607,119330.0,119320.0,0.12509221]
[1754935523650,0.209607,119330.0,119320.0,0.20889621]
[1754935524048,0.294127,119330.0,119320.0,0.25334621]
[1754935524449,0.294127,119330.0,119320.0,0.29435621]
[1754935525052,0.294127,119330.0,119320.0,0.32340621]
[1754935525449,0.0011,119330.0,119320.0,0.86896202]
[1754935525656,0.084897,119330.0,119320.0,0.41665621]
[1754935525850,0.084897,119330.0,119320.0,0.86896202]
[1754935526156,0.128887,119330.0,119320.0,0.86896202]
[1754935526351,0.0011,119330.0,119320.0,0.86896202]
[1754935526656,0.0011,119330.0,119320.0,0.78504202]
[1754935527150,0.0011,119330.0,119320.0,0.33273621]
[1754935527347,0.0011,119330.0,119320.0,0.78504202]
[1754935528151,0.0011,119330.0,119320.0,0.33273621]
[1754935528350,0.0011,119330.0,119320.0,0.78504202]
[1754935529254,0.0011,119330.0,119320.0,0.41665621]
[1754935529458,0.0848971,119330.0,119320.0,0.86896202]
[1754935530356,0.0011,119330.0,119320.0,0.86896202]
[1754935530860,0.0848972,119330.0,119320.0,0.86896202]
[1754935531657,0.2491972,119330.0,119320.0,0.20889621]
[1754935531853,1.1930472,119330.0,119320.0,0.41665621]
[1754935532051,1.1481172,119330.0,119320.0,0.86896202]
[1754935532252,0.0011,119330.0,119320.0,0.86896202]
[1754935532455,0.0848979,119330.0,119320.0,0.86896202]
[1754935532957,0.0011,119330.0,119320.0,0.86896202]
[1754935533347,0.1398679,119330.0,119320.0,0.20889621]
[1754935533552,0.2491979,119330.0,119320.0,0.86896202]
[1754935534556,0.1654,119330.0,119320.0,0.86896202]
[1754935534756,0.0011,119330.0,119320.0,0.86896202]
[1754935535952,0.0848978,119330.0,119320.0,0.86896202]
[1754935536157,0.0011,119330.0,119320.0,1.019268]
[1754935537365,0.0848977,119330.0,119320.0,1.019268]
[1754935537858,0.0011,119330.0,119320.0,1.019268]
[1754935538257,0.0848976,119330.0,119320.0,1.019268]
[1754935538756,0.0011,119330.0,119320.0,1.019268]
[1754935539264,0.0011,119330.0,119320.0,0.41665621]
[1754935539561,0.0011,119330.0,119320.0,0.86896202]
[1754935540761,0.0011,119330.0,119320.0,0.41665621]
[1754935540964,0.0011,119330.0,119320.0,0.86896202]
[1754935541566,0.01478842,119350.0,119340.0,0.0837899]
[1754935541764,0.06942363,119360.0,119350.0,0.0837828]
[1754935541968,0.06796504,119360.0,119350.0,0.74384861]
[1754935542157,2.2133088,119370.0,119350.0,0.84519222]
[1754935542464,2.2133088,119370.0,119360.0,0.59370402]
[1754935542667,1.15876,119370.0,119360.0,0.67762402]
[1754935542857,0.89054,119370.0,119360.0,0.67772402]
[1754935543062,0.0001,119370.0,119360.0,0.67772402]
[1754935543259,0.13485,119370.0,119360.0,0.67772402]
[1754935543757,0.0001,119370.0,119360.0,0.67772402]
[1754935544161,0.0001,119370.0,119360.0,0.74402851]
[1754935544671,0.0021,119370.0,119360.0,0.74402851]
[1754935545667,0.0031,119370.0,119360.0,0.89433449]
[1754935545965,1.2192733,119400.0,119390.0,0.0837548]
[1754935546154,1.3487233,119400.0,119390.0,0.2915148]
[1754935546352,1.3487233,119400.0,119390.0,0.2531348]
[1754935546552,1.3487233,119400.0,119390.0,0.1282048]
[1754935546759,1.3487233,119400.0,119390.0,0.0837548]
[1754935546954,1.80121601,119400.0,119390.0,0.0838548]
[1754935547165,1.80267402,119400.0,119390.0,0.0838548]
[1754935547358,1.80367402,119400.0,119390.0,0.0001]
[1754935547669,1.35128131,119400.0,119390.0,0.0838548]
[1754935547968,1.80367402,119400.0,119390.0,0.0838548]
[1754935548169,1.35128131,119400.0,119390.0,0.0838548]
[1754935548461,1.18377771,119400.0,119390.0,0.1273648]
[1754935548668,0.21178801,119400.0,119390.0,0.2854748]
[1754935548862,0.2270656,119400.0,119390.0,0.2854748]
[1754935549062,1.1147456,119400.0,119390.0,0.2854748]
[1754935549662,1.1984918,119400.0,119390.0,0.2854748]
[1754935549864,1.1981318,119400.0,119390.0,0.2854748]
[1754935550958,1.1143856,119400.0,119390.0,0.2854748]
[1754935551164,1.1125056,119400.0,119390.0,0.2854748]
[1754935552469,1.17969406,119400.0,119390.0,0.2854748]
[1754935552768,1.17969406,119400.0,119390.0,0.73786751]
[1754935552964,0.29545406,119400.0,119390.0,0.73786751]
[1754935553369,1.17877406,119400.0,119390.0,0.73786751]
[1754935553769,1.17877406,119400.0,119390.0,0.2854748]
[1754935554370,1.17877406,119400.0,119390.0,0.73786751]
[1754935555169,1.26252026,119400.0,119390.0,0.73786751]
[1754935555572,1.26136026,119400.0,119390.0,0.73786751]
[1754935555877,1.09673406,119400.0,119390.0,0.73786751]
[1754935556062,1.02141605,119400.0,119390.0,0.73786751]
[1754935556466,1.02125605,119400.0,119390.0,0.73786751]
[1754935556666,0.09501846,119400.0,119390.0,0.73786751]
[1754935556863,0.06948846,119400.0,119390.0,0.73786751]
[1754935558170,0.15323466,119400.0,119390.0,0.73786751]
[1754935558371,0.19619466,119400.0,119390.0,0.73786751]
[1754935558572,0.15026846,119400.0,119390.0,0.73786751]
[1754935558776,0.11244846,119400.0,119390.0,0.73786751]
[1754935559673,0.06948846,119400.0,119390.0,0.73786751]
[1754935559872,0.11244846,119400.0,119390.0,0.73786751]
[1754935560981,0.06948846,119400.0,119390.0,0.73786751]
[1754935561783,0.06948846,119400.0,119390.0,0.90537951]
[1754935561966,0.02242846,119400.0,119390.0,0.90527951]
[1754935562278,1.0896321,119420.0,119410.0,0.0837391]
[1754935562481,1.1730721,119420.0,119410.0,0.73775181]
[1754935563479,1.1730721,119420.0,119410.0,0.73975181]
[1754935563781,1.08944,119420.0,119410.0,0.73985181]
[1754935563976,0.93345,119420.0,119410.0,0.73985181]
[1754935564177,1.02245,119420.0,119410.0,0.73985181]
[1754935564476,1.23928563,119420.0,119410.0,0.73985181]
[1754935564675,1.15395353,119420.0,119410.0,0.74185181]
[1754935565083,1.23768563,119420.0,119410.0,0.74185181]
[1754935566278,1.23768563,119420.0,119410.0,0.67518657]
[1754935567175,1.23768563,119420.0,119410.0,0.2894591]
[1754935567379,1.23768563,119420.0,119410.0,0.67518657]
[1754935567775,1.15395353,119420.0,119410.0,0.67518657]
[1754935567976,1.23768563,119420.0,119410.0,0.67518657]
[1754935568276,1.23768563,119420.0,119410.0,0.2894591]
[1754935568587,1.23768563,119420.0,119410.0,0.0878391]
[1754935570373,1.23768563,119420.0,119410.0,0.47356657]
[1754935570570,1.23768563,119420.0,119410.0,0.1315791]
[1754935570983,1.23768563,119420.0,119410.0,0.0878391]
[1754935571985,1.23768563,119420.0,119410.0,0.47356657]
[1754935572875,1.15395353,119420.0,119410.0,0.55355657]
[1754935573180,1.23768573,119420.0,119410.0,0.0878392]
[1754935573386,1.23914351,119420.0,119410.0,0.0878392]
[1754935573772,1.23914351,119420.0,119410.0,0.0041]
[1754935573974,0.0837463,119400.0,119390.0,0.63697777]
[1754935574180,1.1679263,119400.0,119390.0,0.63697777]
[1754935574883,0.21026,119400.0,119390.0,0.83859777]
[1754935575278,0.21026,119400.0,119390.0,0.83959777]
[1754935575481,0.21036,119400.0,119390.0,0.84069777]
[1754935575881,0.21036,119400.0,119390.0,0.4549703]
[1754935576180,0.2941062,119400.0,119390.0,0.2533503]
[1754935576386,0.2941062,119400.0,119390.0,0.63907777]
[1754935577188,0.2941062,119400.0,119390.0,0.2533503]
[1754935577576,0.67983367,119400.0,119390.0,0.0021]
[1754935578083,0.0837602,119380.0,119370.0,0.72079507]
[1754935578281,1.1608602,119380.0,119370.0,0.3350676]
[1754935578480,1.1608602,119380.0,119370.0,0.72079507]
[1754935578997,1.1608602,119380.0,119370.0,0.67854817]
[1754935579283,1.1609602,119380.0,119370.0,0.67864817]
[1754935579479,1.1609602,119380.0,119370.0,0.67964817]
[1754935580187,1.1609602,119380.0,119370.0,0.68164817]
[1754935582190,1.1609602,119380.0,119370.0,0.79455817]
[1754935582391,1.1609602,119380.0,119370.0,0.82166817]
[1754935582692,1.1609602,119380.0,119370.0,0.84532817]
[1754935583889,1.56514737,119380.0,119370.0,0.0031]
[1754935584293,1.1794199,119380.0,119370.0,0.0031]
[1754935584694,1.56514737,119380.0,119370.0,0.0031]
[1754935585393,1.56514737,119380.0,119370.0,0.0021]
[1754935585597,1.56914737,119380.0,119370.0,0.0021]
[1754935586201,1.1834199,119380.0,119370.0,0.0001]
[1754935586503,1.1864199,119380.0,119370.0,0.0001]
[1754935587001,1.1864199,119380.0,119330.0,0.2513739]
[1754935587002,0.0837742,119360.0,119330.0,0.2513739]
[1754935587191,0.1645082,119340.0,119330.0,0.3327439]
[1754935587391,1.1564482,119340.0,119330.0,0.71847137]
[1754935587799,1.1564482,119340.0,119330.0,0.84230137]
[1754935588302,1.15638853,119340.0,119330.0,0.84230137]
[1754935588600,1.15648853,119340.0,119330.0,0.84340137]
[1754935589194,1.15648853,119340.0,119330.0,0.84440137]
[1754935589895,0.93426909,119340.0,119330.0,0.84340137]
[1754935590106,0.06846909,119340.0,119330.0,0.84440137]
[1754935591108,0.35707749,119340.0,119330.0,0.4586739]
[1754935591302,0.35707749,119340.0,119330.0,0.84440137]
[1754935592202,0.35707749,119340.0,119330.0,0.4586739]
[1754935592399,0.35707749,119340.0,119330.0,0.84440137]
[1754935593609,0.23744909,119340.0,119330.0,0.84440137]
[1754935593796,0.06846909,119340.0,119330.0,0.84440137]
[1754935599098,1.13520909,119340.0,119330.0,0.0858953]
[1754935599305,1.13520909,119340.0,119330.0,0.67682277]
[1754935599700,1.21899739,119340.0,119330.0,0.67682277]
[1754935600108,1.21899739,119340.0,119330.0,0.2910953]
[1754935600309,1.21899739,119340.0,119330.0,0.67682277]
[1754935600510,0.35707739,119340.0,119330.0,0.67682277]
[1754935600709,1.13676909,119340.0,119330.0,0.67682277]
[1754935601312,0.19427909,119340.0,119330.0,0.67682277]
[1754935601509,1.22059749,119340.0,119330.0,0.2910953]
[1754935601806,1.22059749,119340.0,119330.0,0.0858953]
[1754935602010,1.22059749,119340.0,119330.0,0.47162277]
[1754935602613,1.13764909,119340.0,119330.0,0.55299277]
[1754935602812,1.13764909,119340.0,119330.0,0.67682277]
[1754935603205,1.22143749,119340.0,119330.0,0.2910953]
[1754935603409,1.22143749,119340.0,119330.0,0.67682277]
[1754935604114,1.22143749,119340.0,119330.0,0.59451277]
[1754935605312,1.22143749,119340.0,119330.0,0.47162277]
[1754935605518,1.22143749,119340.0,119330.0,0.0858953]
[1754935605815,1.22143749,119340.0,119330.0,0.47162277]
[1754935606210,1.22143749,119340.0,119330.0,0.0858953]
[1754935606615,1.22143749,119340.0,119330.0,0.47162277]
[1754935607315,1.22143749,119340.0,119330.0,0.0858953]
[1754935607514,1.22143749,119340.0,119330.0,0.47162277]
[1754935608015,1.62561551,119340.0,119330.0,0.0858955]
[1754935608214,1.62561551,119340.0,119330.0,0.47162297]
[1754935608215,1.23988804,119340.0,119330.0,0.47162297]
[1754935608412,1.23988804,119340.0,119330.0,0.67008297]
[1754935608614,1.15217964,119340.0,119330.0,0.67008297]
[1754935608916,1.23596814,119340.0,119330.0,0.67008297]
[1754935609617,1.23696814,119340.0,119330.0,0.66908297]
[1754935610112,1.13500909,119340.0,119330.0,0.66908297]
[1754935610315,0.06946909,119340.0,119330.0,0.66908297]
[1754935610518,0.11892,119360.0,119350.0,0.0837812]
[1754935610719,1.05554,119360.0,119350.0,0.66796867]
[1754935611122,1.1393142,119360.0,119350.0,0.66796867]
[1754935611538,1.05554,119360.0,119350.0,0.66796867]
[1754935611721,1.05554,119360.0,119350.0,0.66806867]